Workbook

Sheet Sheet1 (2)
A1: 辰溪县2025年帮扶对象发展产业奖补项目奖补资金汇总表
A2: 序号 | B2: 乡镇 | C2: 帮扶对象 | G2: 总 户数 | H2: 总 奖补资金 （元） | I2: 备注
C3: 监测户数 | D3: 奖补资金 （元） | E3: 脱贫户数 | F3: 奖补资金 （元）
A4: 1 | B4: 安坪 | C4: 146 | D4: =278600-33000 -> 245600 | E4: 766 | F4: 374670 | G4: =C4+E4 -> 912 | H4: =D4+F4 -> 620270
A5: 2 | B5: 辰阳 | C5: 92 | D5: 147200 | E5: 680 | F5: 432180 | G5: =C5+E5 -> 772 | H5: =D5+F5 -> 579380
A6: 3 | B6: 船溪 | C6: 61 | D6: 93670 | E6: 471 | F6: 228090 | G6: 532 | H6: 321760
A7: 4 | B7: 大水田 | C7: 147 | D7: 251200 | E7: 663 | F7: 331530 | G7: 810 | H7: 582730
A8: 5 | B8: 后塘 | C8: 98 | D8: 152440 | E8: 938 | F8: 496790 | G8: 1036 | H8: 649230
A9: 6 | B9: 黄溪口 | C9: 48 | D9: 78520 | E9: 380 | F9: 183930 | G9: 428 | H9: 262450
A10: 7 | B10: 火马冲 | C10: 107 | D10: 185000 | E10: 490 | F10: 263280 | G10: 597 | H10: 448280
A11: 8 | B11: 锦滨 | C11: 66 | D11: 122200 | E11: 383 | F11: 203080 | G11: 449 | H11: 325280
A12: 9 | B12: 龙泉岩 | C12: 43 | D12: 72900 | E12: 276 | F12: 133300 | G12: 319 | H12: 206200
A13: 10 | B13: 龙头庵 | C13: 70 | D13: 94870 | E13: 592 | F13: 378440 | G13: 662 | H13: 473310
A14: 11 | B14: 罗子山 | C14: 92 | D14: 143800 | E14: 372 | F14: 192320 | G14: 464 | H14: 336120
A15: 12 | B15: 桥头溪 | C15: 42 | D15: 60520 | E15: 307 | F15: 147440 | G15: 349 | H15: 207960
A16: 13 | B16: 上蒲溪 | C16: 35 | D16: 51200 | E16: 333 | F16: 193100 | G16: 368 | H16: 244300
A17: 14 | B17: 柿溪 | C17: 81 | D17: 107420 | E17: 544 | F17: 271860 | G17: 625 | H17: 379280
A18: 15 | B18: 苏木溪 | C18: 75 | D18: 120700 | E18: 487 | F18: 239770 | G18: 562 | H18: 360470
A19: 16 | B19: 谭家场 | C19: 61 | D19: 87950 | E19: 509 | F19: 245170 | G19: 570 | H19: 333120
A20: 17 | B20: 潭湾 | C20: 126 | D20: 216750 | E20: 902 | F20: 467280 | G20: 1028 | H20: 684030
A21: 18 | B21: 田湾 | C21: 45 | D21: 64350 | E21: 147 | F21: 76810 | G21: 192 | H21: 141160
A22: 19 | B22: 仙人湾 | C22: 94 | D22: 145000 | E22: 947 | F22: 611090 | G22: 1041 | H22: 756090
A23: 20 | B23: 小龙门 | C23: 60 | D23: 98750 | E23: 375 | F23: 215640 | G23: 435 | H23: 314390
A24: 21 | B24: 孝坪 | C24: 82 | D24: 142660 | E24: 464 | F24: 225940 | G24: 546 | H24: 368600
A25: 22 | B25: 修溪 | C25: 105 | D25: 162360 | E25: 666 | F25: 357710 | G25: 771 | H25: 520070
A26: 23 | B26: 长田湾 | C26: 126 | D26: 205520 | E26: 912 | F26: 592800 | G26: 1038 | H26: 798320
A27: 合计 | C27: =SUM(C4:C26) -> 1902 | D27: =SUM(D4:D26) -> 3050580 | E27: =SUM(E4:E26) -> 12604 | F27: =SUM(F4:F26) -> 6862220 | G27: 14506 | H27: 9912800
A28: 填报人： 审核人： 主要领导签字：

Sheet Sheet2
A1: 辰溪县2025年帮扶对象发展产业奖补项目奖补资金汇总表
A2: 序号 | B2: 乡镇 | C2: 帮扶对象 | I2: 总 户数 | J2: 总 奖补资金 （元） | K2: 备注
C3: 监测户数 | D3: 奖补资金 （元） | E3: 脱贫户数 | F3: 奖补资金 （元） | G3: 一般户数 | H3: 奖补资金 （元）
A4: 1 | B4: 安坪 | C4: 11 | D4: =C4*3000 -> 33000 | E4: 32 | F4: =E4*2000 -> 64000 | G4: 70 | H4: =G4*2000 -> 140000 | I4: =C4+E4+G4 -> 113 | J4: =D4+F4+H4 -> 237000 | K4: 监测户3000元/户， 脱贫户、一般户2000元/户
A5: 2 | B5: 龙泉岩 | C5: 4 | D5: =C5*3000 -> 12000 | E5: 23 | F5: =E5*2000 -> 46000 | G5: 73 | H5: =G5*2000 -> 146000 | I5: =C5+E5+G5 -> 100 | J5: =D5+F5+H5 -> 204000
A6: 3 | B6: 锦滨 | C6: 4 | D6: =C6*3000 -> 12000 | E6: 34 | F6: =E6*2000 -> 68000 | G6: 76 | H6: =G6*2000 -> 152000 | I6: =C6+E6+G6 -> 114 | J6: =D6+F6+H6 -> 232000
A7: 合计 | I7: =SUM(I4:I6) -> 327 | J7: =SUM(J4:J6) -> 673000
A8: 填报人： 审核人： 主要领导签字：
